bitfinex/quotes_ETHUSD_20250706
["timestamp","ask_amount","ask_price","bid_price","bid_amount"]
[1751837335266,0.1944,2568.9,2568.7,0.088762]
[1751837335987,4.08718393,2568.9,2568.7,0.088762]
[1751837336288,3.89286826,2568.8,2568.7,0.088762]
[1751837341697,4.25741531,2568.8,2568.7,0.088762]
[1751837343905,0.36454705,2568.8,2568.7,0.088762]
[1751837344074,0.36463767,2568.8,2568.7,0.088762]
[1751837344688,2.43263767,2568.8,2568.7,0.088762]
[1751837345803,6.32550593,2568.8,2568.7,0.088762]
[1751837346103,2.43263767,2568.8,2568.7,0.088762]
[1751837346946,6.32550593,2568.8,2568.7,0.088762]
[1751837347297,2.43263767,2568.8,2568.7,0.088762]
[1751837347938,6.32550593,2568.8,2568.7,0.088762]
[1751837348229,2.43263767,2568.8,2568.7,0.088762]
[1751837348695,2.43266968,2568.8,2568.7,0.088762]
[1751837349196,6.32553794,2568.8,2568.7,0.088762]
[1751837351298,10.57966968,2568.8,2568.7,0.088762]
[1751837352210,2.068,2568.9,2568.7,4.79275248]
[1751837352409,2.068,2568.9,2568.7,0.899862]
[1751837352626,2.068,2568.9,2568.8,3.89286826]
[1751837352829,0.1964,2569.1,2568.8,3.89286826]
[1751837353026,2.068,2569.0,2568.9,3.89271672]
[1751837353835,2.07,2569.1,2568.9,3.89271672]
[1751837354033,2.07,2569.1,2568.8,0.1944]
[1751837354233,3.11064,2569.1,2568.8,0.1944]
[1751837355120,7.00311376,2569.1,2568.8,0.1944]
[1751837355523,3.89259798,2569.0,2568.8,0.1944]
[1751837355904,7.0031145,2569.1,2568.8,0.1944]
[1751837356109,2.07,2569.1,2568.8,0.1944]
[1751837356406,8.142,2569.0,2568.8,0.1944]
[1751837356922,3.89442535,2569.1,2568.8,0.1944]
[1751837357127,2.068,2568.9,2568.8,0.1944]
[1751837359135,0.002,2569.1,2568.8,0.1944]
[1751837359352,10.162,2569.0,2568.8,0.1944]
[1751837360521,10.162,2569.0,2568.8,0.290808]
[1751837362970,0.002,2569.1,2568.8,4.18362259]
[1751837363159,0.002,2569.1,2568.8,4.18362122]
[1751837363337,2.034,2569.1,2568.9,3.89267258]
[1751837364463,0.002,2569.1,2569.0,3.8925652]
[1751837364663,8.12,2569.1,2568.9,0.096408]
[1751837365853,12.01244404,2569.1,2568.9,0.096408]
[1751837366052,0.002,2569.1,2569.0,0.8284]
[1751837366553,0.002,2569.1,2569.0,0.924808]
[1751837366753,0.002,2569.1,2569.0,0.874808]
[1751837366957,0.002,2569.1,2569.0,4.7673732]
[1751837373363,0.002,2569.1,2569.0,0.874808]
[1751837374962,0.002,2569.1,2569.0,4.7673732]
[1751837375971,0.002,2569.1,2569.0,4.7683732]
[1751837376174,0.002,2569.1,2569.0,4.9627732]
[1751837376752,2.032,2569.3,2569.0,4.9627732]
[1751837378484,2.032,2569.3,2569.1,3.89239682]
[1751837378657,2.032,2569.3,2569.0,4.96269231]
[1751837378857,2.032,2569.3,2569.0,1.070208]
[1751837379160,2.032,2569.3,2569.0,4.96272281]
[1751837379678,2.032,2569.3,2569.0,1.070208]
[1751837380006,2.032,2569.3,2569.0,4.96276841]
[1751837380482,3.8919768,2569.4,2569.0,4.96276841]
[1751837380701,2.032,2569.3,2569.0,4.96276841]
[1751837381086,3.89241368,2569.1,2569.0,0.097408]
[1751837381290,4.25727315,2569.1,2569.0,0.097408]
[1751837381466,3.89241368,2569.1,2569.0,0.097408]
[1751837381977,11.97741368,2569.1,2569.0,0.097408]
[1751837382184,12.34239336,2569.1,2569.0,0.097408]
[1751837383271,12.75524268,2569.1,2569.0,0.097408]
[1751837384283,12.75524404,2569.1,2569.0,0.097408]
[1751837384673,12.755244,2569.1,2569.0,0.097408]
[1751837385874,20.830244,2569.1,2569.0,0.097408]
[1751837388003,20.83026812,2569.1,2569.0,0.097408]
[1751837390599,20.83027209,2569.1,2569.0,0.097408]
[1751837391013,21.58617209,2569.1,2569.0,0.097408]
[1751837391698,3.89301981,2568.7,2568.5,0.82712407]
[1751837391880,14.39486913,2568.7,2568.5,0.82712407]
[1751837392079,3.89317137,2568.6,2568.5,0.82712407]
[1751837392976,14.39494058,2568.7,2568.5,0.82712407]
[1751837393174,3.89317137,2568.6,2568.5,0.82712407]
[1751837393413,10.50184932,2568.7,2568.4,0.2504228]
[1751837393612,3.89317281,2568.6,2568.4,0.2504228]
[1751837394416,10.50184932,2568.7,2568.4,0.2504228]
[1751837394707,3.89327715,2568.6,2568.4,0.2504228]
[1751837395279,3.89332295,2568.5,2568.4,0.2504228]
[1751837395513,11.96032295,2568.5,2568.4,0.2504228]
[1751837395699,11.96032295,2568.5,2568.4,0.0560228]
[1751837396801,3.89332295,2568.5,2568.4,0.0560228]
[1751837397134,2.004,2568.5,2568.4,0.0560228]
[1751837397343,0.1944,2568.7,2568.4,0.0560228]
[1751837397519,2.004,2568.6,2568.5,0.9901]
[1751837397835,2.004,2568.8,2568.5,5.38125574]
[1751837397997,2.004,2568.8,2568.5,5.18694299]
[1751837398204,2.004,2568.8,2568.7,0.1944]
[1751837400305,3.89272155,2568.9,2568.7,0.1944]
[1751837400634,2.004,2568.8,2568.7,0.1944]
[1751837401005,4.64480298,2569.1,2568.7,0.1944]
[1751837401203,10.43549007,2569.0,2568.7,0.1944]
[1751837401402,13.96366911,2569.0,2568.7,0.1944]
[1751837401800,3.89273254,2568.9,2568.7,0.1944]
[1751837403438,13.9635901,2569.0,2568.7,0.1944]
[1751837403641,3.8925901,2569.0,2568.7,0.1944]
[1751837403842,5.89672436,2568.9,2568.7,0.1944]
[1751837404435,2.004,2568.9,2568.7,0.1944]
[1751837404603,2.004,2569.0,2568.7,0.1944]
[1751837405421,5.89658089,2569.0,2568.7,0.1944]
[1751837412354,5.89658089,2569.0,2568.7,0.1944]
[1751837412848,0.002,2569.1,2568.7,0.23333019]
[1751837413146,0.002,2569.1,2568.5,0.7957]
[1751837413147,2.004,2568.9,2568.6,3.93200885]
[1751837413650,2.004,2568.9,2568.8,0.1944]
[1751837415724,2.004,2568.9,2568.8,4.08726826]
[1751837416431,0.002,2569.1,2568.9,3.89271108]
[1751837416658,2.006,2569.1,2569.0,3.8925652]
[1751837416824,2.006,2569.1,2569.0,4.6765652]
[1751837417456,2.006,2569.1,2568.9,3.89264614]
[1751837417751,0.002,2569.1,2569.0,3.8925652]
[1751837418051,0.002,2569.1,2569.0,4.0869652]
[1751837424656,0.002,2569.1,2569.0,4.96333116]
[1751837427366,11.353,2569.9,2569.8,3.89135341]
[1751837427888,0.7604,2570.1,2569.9,3.89115388]
[1751837428189,2.003,2570.0,2569.9,3.89115388]
[1751837430694,0.7604,2570.1,2569.9,3.89115388]
[1751837430883,0.1277211,2572.9,2569.9,3.89115388]
[1751837430884,0.3904,2573.7,2570.4,5.975]
[1751837431086,15.25604799,2573.9,2573.8,38.50030577]
[1751837431295,25.23326992,2577.7,2574.6,4.115]
[1751837431595,25.23326992,2577.7,2577.6,18.75580221]
[1751837431596,15.61220819,2577.7,2577.6,18.75580221]
[1751837431759,37.15769277,2579.2,2578.2,0.5]
[1751837431760,7.61924505,2579.2,2578.2,0.5]
[1751837431959,7.61924505,2579.2,2577.7,7.75885478]
[1751837431960,40.62722956,2580.6,2580.5,3.87521798]
[1751837431961,20.09928027,2580.6,2580.5,3.87521798]
[1751837432165,2.73,2582.2,2580.9,3.87461738]
[1751837432391,0.5,2583.0,2581.7,3.87341674]
[1751837432557,0.5,2583.0,2582.9,3.87161717]
[1751837432762,0.0156086,2583.0,2582.9,3.87161717]
[1751837432985,9.351,2584.0,2583.9,3.87011881]
[1751837433154,12.75,2584.0,2583.7,3.87035268]
[1751837433356,1e-08,2584.2,2584.1,3.86981927]
[1751837433691,0.1822831,2584.7,2584.6,3.86907064]
[1751837433890,3.1612831,2584.7,2584.2,41.89703026]
[1751837434090,3.6612831,2584.7,2584.5,3.86919113]
[1751837434263,3.6612831,2584.7,2584.6,1.33116505]
[1751837434264,3.1612831,2584.7,2584.6,1.33116505]
[1751837434979,3.1612831,2584.7,2584.2,14.61684654]
[1751837434980,0.5,2584.4,2584.2,14.61684654]
[1751837435180,0.5,2583.9,2583.5,3.87066347]
[1751837435505,0.5,2583.7,2583.6,1.68354581]
[1751837435813,0.32310672,2589.1,2583.6,1.64484013]
[1751837435960,0.32310672,2589.1,2582.5,32.86986631]
[1751837435961,0.7501,2587.7,2586.1,9.78287028]
[1751837436314,0.7501,2587.5,2586.6,5.43028169]
[1751837436605,4.852,2587.6,2586.6,0.28520142]
[1751837436906,0.3821,2592.1,2591.9,3.85813023]
[1751837437066,0.3821,2592.1,2587.5,1.94950678]
[1751837437067,0.3821,2592.1,2586.7,0.0029]
[1751837437068,0.067,2591.9,2586.7,0.0029]
[1751837437409,0.5,2590.9,2587.2,2.95299831]
[1751837437561,0.5,2591.6,2586.3,0.3693]
[1751837437760,1.90693924,2596.1,2590.9,3.85966266]
[1751837437976,62.32804318,2637.9,2591.5,0.5]
[1751837437977,4.852,2593.7,2591.5,0.5]
[1751837438265,4.852,2595.7,2593.5,3.85579332]
[1751837438266,4.478,2593.6,2593.5,3.85579332]
[1751837438458,4.478,2593.6,2590.8,0.3693]
[1751837438459,9.33,2593.6,2592.2,0.5]
[1751837438691,9.12843776,2593.6,2593.3,0.5]
[1751837438892,3.85579332,2593.5,2593.3,0.5]
[1751837439114,9.12843776,2593.6,2593.3,0.5]
[1751837439600,9.12843776,2593.6,2590.9,13.85965419]
[1751837439601,0.20162808,2595.3,2590.8,3.85372]
[1751837439810,9.316,2594.9,2590.9,40.0]
[1751837439987,0.20162808,2595.3,2590.9,10.0]
[1751837440162,11.77642983,2594.7,2590.8,0.3696]
[1751837440363,33.85430718,2594.5,2591.0,3.8595137]
[1751837440580,19.37689248,2594.6,2589.9,5.83524015]
[1751837440581,11.77642983,2592.4,2591.4,3.85891031]
[1751837440876,9.316,2594.1,2592.0,3.85801492]
[1751837441056,9.316,2594.1,2589.8,2.32729789]
[1751837441057,0.20160678,2594.9,2591.1,3.85936474]
[1751837441259,9.316,2594.8,2590.8,10.0]
[1751837441458,0.9316,2594.7,2591.4,2.726296]
[1751837441659,1.30173,2595.0,2590.0,4.66126985]
[1751837441660,9.302,2594.6,2590.0,4.66126985]
[1751837441960,30.0,2594.5,2591.0,1.95805337]
[1751837442168,16.82973,2595.0,2591.8,40.0]
[1751837442169,9.302,2594.9,2591.8,40.0]
[1751837442372,9.302,2594.9,2592.4,3.85739634]
[1751837442583,1.060373,2594.8,2590.3,51.77490693]
[1751837442771,9.302,2594.9,2592.7,0.818]
[1751837442977,9.302,2594.9,2592.9,3.85668556]
[1751837443179,9.302,2594.9,2592.8,3.85681939]
[1751837443400,9.302,2594.9,2594.2,3.85462493]
[1751837443701,9.302,2594.9,2592.7,0.818]
[1751837443702,9.252,2594.9,2594.0,3.85499617]
[1751837443867,9.252,2594.9,2592.9,3.85668556]
[1751837443868,1.060373,2594.8,2592.9,3.85668556]
[1751837444069,3.85430221,2594.6,2592.7,0.818]
[1751837444270,0.38543022,2594.5,2592.7,0.818]
[1751837444470,15.483,2594.5,2591.9,3.85817354]
[1751837444772,11.65090954,2593.7,2592.0,1.158585]
[1751837444969,11.65090954,2593.1,2590.6,0.818]
[1751837445169,11.88183153,2592.3,2589.5,0.818]
[1751837445370,11.88183153,2591.7,2590.3,3.86055669]
[1751837445688,3.85876905,2591.5,2590.4,3.86040456]
[1751837445889,24.773,2591.4,2589.1,3.86222562]
[1751837446088,24.773,2591.4,2589.0,9.29888665]
[1751837446089,11.88183153,2591.0,2589.0,9.29888665]
[1751837446401,3.86028663,2590.5,2589.4,1.159691]
[1751837446601,3.86129796,2589.9,2589.4,5.16829556]
[1751837446794,28.63443056,2589.8,2589.3,5.16829556]
[1751837446989,3.86145852,2589.7,2589.3,5.16829556]
[1751837447190,28.63442978,2589.8,2589.1,7.2431823]
[1751837447391,0.096454,2591.8,2589.4,13.16073097]
[1751837447591,0.20184183,2591.5,2589.9,4.13059109]
[1751837447790,0.20184183,2591.5,2590.4,4.13059109]
[1751837448110,15.483,2591.4,2590.5,5.36673064]
[1751837448406,15.483,2591.4,2590.7,9.29888665]
[1751837448604,3.85815882,2592.0,2590.7,9.29888665]
[1751837448815,0.1985566,2592.8,2590.8,11.23292593]
[1751837448995,14.1152,2592.7,2592.6,10.26155347]
[1751837449312,29.5932,2592.7,2591.8,5.14304931]
[1751837449515,29.5932,2592.7,2591.5,3.85863373]
[1751837449716,29.5932,2592.7,2592.6,4.11443945]
[1751837450021,29.5932,2592.7,2591.2,7.18725277]
[1751837450022,4.8282,2592.7,2591.2,7.18725277]
[1751837450234,4.8282,2592.7,2592.4,10.26155347]
[1751837450235,9.287,2592.6,2592.4,10.26155347]
[1751837450520,9.287,2592.6,2592.5,1.23089579]
[1751837451186,9.287,2592.6,2592.5,1.42369579]
[1751837451385,9.287,2592.6,2592.5,4.05008061]
[1751837451618,9.287,2592.6,2592.5,0.1928]
[1751837451781,9.287,2592.6,2591.7,3.8583923]
[1751837451782,0.09654981,2593.3,2593.2,3.85623939]
[1751837451988,9.281,2593.7,2593.6,3.85564466]
[1751837452314,0.20160749,2595.6,2593.4,1.6317]
[1751837452514,9.281,2594.9,2594.3,3.8545441]
[1751837452713,3.85375734,2594.9,2593.4,11.6317]
[1751837453034,0.20160749,2595.6,2594.1,10.0]
[1751837453199,9.281,2594.8,2593.7,10.0]
[1751837453390,9.281,2594.8,2593.5,11.15806]
[1751837453591,9.281,2594.8,2593.8,13.85534736]
[1751837453789,9.281,2594.8,2594.4,3.85443256]
[1751837453997,3.85331679,2595.2,2594.4,13.29577408]
[1751837454293,0.20160749,2595.6,2594.5,1.22730222]
[1751837454294,9.275,2594.9,2594.5,1.22730222]
[1751837454494,9.275,2594.9,2594.8,10.24003246]
[1751837454723,0.072,2597.9,2595.0,2.274941]
[1751837454901,9.5692761,2596.8,2596.5,10.74366588]
[1751837455093,2.62290497,2596.8,2596.7,5.11370979]
[1751837455290,2.62290497,2596.8,2596.7,6.86134358]
[1751837455494,9.275,2597.3,2596.8,3.8508934]
[1751837455724,0.072,2597.9,2596.9,1.22730222]
[1751837455893,9.275,2597.8,2597.5,10.74554993]
[1751837456096,9.275,2597.7,2597.5,13.81576886]
[1751837456345,13.55578679,2597.7,2597.6,15.04381931]
[1751837456496,3.85000385,2597.4,2597.3,7.16433222]
[1751837456694,3.85000385,2597.4,2597.3,1.23088161]
[1751837456893,10.0,2596.8,2595.9,16.36402964]
[1751837457241,1.572,2597.0,2595.0,21.61226305]
[1751837457242,10.267,2596.7,2595.0,21.61226305]
[1751837457394,3.85341605,2595.1,2595.0,20.45503705]
[1751837457598,20.85971766,2595.1,2594.0,20.45503705]
[1751837457793,3.85395826,2594.8,2594.0,24.31007465]
[1751837458025,3.85405309,2594.7,2594.0,20.45503705]
[1751837458222,3.85390856,2594.8,2594.0,20.45503705]
[1751837458426,0.1427605,2594.7,2594.0,20.45503705]
[1751837458738,3.99681199,2594.7,2594.0,20.45503705]
[1751837459038,3.85374447,2594.9,2594.0,20.45503705]
[1751837459039,9.267,2594.6,2594.0,20.45503705]
[1751837459205,9.267,2594.6,2594.1,0.63818438]
[1751837459414,9.267,2594.6,2594.0,20.45503705]
[1751837459415,9.267,2594.5,2594.0,20.45503705]
[1751837459746,9.267,2594.5,2594.2,20.45503705]
[1751837460233,9.265,2594.6,2594.2,20.45503705]
[1751837460437,9.265,2594.6,2594.3,0.6512257]
[1751837460648,9.265,2594.6,2594.4,0.32561285]
[1751837460926,9.265,2594.6,2594.2,20.45503705]
[1751837461097,9.2642,2594.6,2594.5,3.85430718]
[1751837461301,9.265,2595.7,2594.5,1.09994634]
[1751837461519,9.265,2595.7,2595.1,3.85329814]
[1751837461720,9.265,2595.7,2595.2,0.32975781]
[1751837461931,9.265,2595.7,2595.6,0.192]
[1751837462332,9.265,2595.7,2595.6,0.8568677]
[1751837462633,9.265,2595.7,2595.6,0.192]
[1751837462935,13.59531894,2595.7,2595.6,0.33242544]
[1751837463135,3.85282219,2595.5,2592.3,3.85745485]
[1751837463337,3.85445575,2594.4,2594.3,0.33266349]
[1751837463631,15.438,2594.4,2593.3,3.85605015]
[1751837463850,19.29255587,2594.4,2593.5,3.85570223]
[1751837464050,3.85386156,2594.8,2593.5,3.85570223]
[1751837464198,15.438,2595.0,2594.0,34.34425282]
[1751837464409,3.85387891,2594.8,2594.3,0.33784926]
[1751837464614,9.263,2594.9,2594.4,0.33792044]
[1751837464814,9.61744319,2594.9,2594.0,38.19919377]
[1751837465139,5.76361767,2594.9,2594.8,3.85386156]
[1751837465350,2.61891431,2596.0,2595.0,0.55]
[1751837465351,3.85240752,2595.8,2595.0,0.55]
[1751837465525,11.88191431,2596.0,2595.0,0.55]
[1751837465526,15.73403439,2596.0,2595.3,21.53371489]
[1751837465708,3.85246463,2595.8,2595.3,21.53371489]
[1751837465914,0.2883702,2596.8,2595.4,0.88941581]
[1751837466151,0.2883702,2596.8,2595.9,0.55]
[1751837466357,0.2883702,2596.8,2595.4,10.0]
[1751837466358,0.2883702,2596.8,2596.1,0.55]
[1751837466563,0.2883702,2596.8,2596.5,4.40128448]
[1751837466849,1.0,2597.7,2597.6,4.39970742]
[1751837467065,1.0,2597.7,2597.6,0.55]
[1751837467470,1.0,2597.7,2597.4,0.55]
[1751837467681,0.31891054,2598.5,2597.2,19.28730032]
[1751837467682,4.816,2602.5,2597.7,18.82589]
[1751837467839,1.6521,2601.6,2601.0,11.23583587]
[1751837468190,3.84467512,2601.0,2600.9,7.49055725]
[1751837468385,0.066855,2601.7,2600.2,13.91103489]
[1751837468525,3.84571011,2600.3,2600.2,13.91103489]
[1751837468728,3.84644972,2599.8,2599.7,17.12127372]
[1751837469081,23.48809469,2599.8,2599.7,9.29470211]
[1751837469351,3.84748566,2599.1,2597.7,15.437]
[1751837469522,3.84748566,2599.1,2599.0,21.74167593]
[1751837469723,3.84689363,2599.5,2595.8,3.85231181]
[1751837469937,3.84788301,2598.9,2595.9,1.15678]
[1751837470134,9.5373466,2598.2,2596.4,0.20432504]
[1751837470342,3.84997299,2597.5,2595.5,1.5395]
[1751837470656,3.85086283,2596.9,2595.3,15.429]
[1751837470848,9.257,2597.4,2595.4,15.429]
[1751837471043,3.85015208,2597.3,2595.4,15.429]
[1751837471367,9.257,2597.4,2595.4,15.429]
[1751837471732,3.85181746,2596.2,2595.5,15.429]
[1751837471954,3.85124404,2596.6,2594.5,2.696825]
[1751837472153,3.8516985,2596.3,2594.6,0.20438782]
[1751837472462,9.256,2596.4,2594.7,15.63142174]
[1751837472667,11.04196447,2597.6,2595.1,3.85330141]
[1751837472862,9.256,2597.7,2595.0,3.85352305]
[1751837473198,11.04196447,2598.5,2597.2,0.192]
[1751837473354,0.26697564,2598.8,2597.0,11.5999]
[1751837473695,0.20139942,2599.2,2597.6,3.84960169]
[1751837473899,4.04885416,2599.2,2597.8,3.84939051]
[1751837474087,0.60628484,2599.2,2597.7,15.427]
[1751837474258,3.84822184,2598.7,2597.7,19.27650382]
[1751837474465,3.84795583,2598.8,2597.1,3.85035327]
[1751837474751,0.002,2598.2,2597.2,15.427]
[1751837474980,3.84748566,2599.1,2597.2,15.427]
[1751837475167,0.20139942,2599.2,2597.9,3.84920057]
[1751837475371,3.84764643,2599.0,2598.0,0.34042776]
[1751837475567,0.20139942,2599.2,2597.3,10.0]
[1751837475753,4.04880698,2599.2,2597.7,10.0]
[1751837475953,0.20139942,2599.2,2598.3,3.84864169]
[1751837476183,0.20139942,2599.2,2597.2,15.427]
[1751837476184,3.84825032,2598.6,2598.4,0.34063492]
[1751837476489,9.253,2598.5,2596.4,1.156484]
[1751837476672,3.84758042,2599.1,2594.0,9.253]
[1751837476673,29.3735472,2597.8,2595.4,1.5638]
[1751837477012,3.84985563,2597.5,2595.8,0.626452]
[1751837477208,1.6577,2597.9,2595.9,0.2042342]
[1751837477382,3.84970742,2597.6,2596.1,0.626452]
[1751837477697,3.85085943,2596.9,2595.9,3.85212505]
[1751837477895,3.85076011,2596.9,2595.5,4.47915891]
[1751837478187,9.252,2597.0,2596.2,4.47818216]
[1751837478403,8.32669528,2597.0,2596.5,0.626452]
[1751837478703,11.04196447,2597.4,2596.7,0.626452]
[1751837479004,6.26442835,2598.0,2597.3,0.55]
[1751837479203,0.11989015,2598.0,2597.9,0.24789619]
[1751837479594,9.252,2598.6,2597.9,0.24789619]
[1751837480178,10.56201865,2598.6,2597.9,0.24789619]
[1751837480380,3.8510417,2596.7,2596.6,0.24789619]
[1751837480580,3.8522084,2596.0,2595.2,3.85325791]
[1751837480780,3.35003213,2596.5,2595.4,0.24789619]
[1751837480997,13.85131984,2596.6,2595.5,0.20482809]
[1751837481225,10.0,2596.6,2595.6,0.24789619]
[1751837481373,10.0,2596.6,2595.5,0.24789619]
[1751837481374,3.85148667,2596.4,2595.5,0.24789619]
[1751837481574,17.65639189,2596.4,2595.7,0.24789619]
[1751837481776,3.85166507,2596.3,2595.9,0.24789619]
[1751837482029,3.85178337,2596.2,2596.1,0.24789619]
[1751837482181,17.65639189,2596.4,2596.1,0.79434643]
[1751837482380,17.65639189,2596.4,2596.3,0.24789619]
[1751837482686,17.65639189,2596.4,2596.3,0.58942726]
[1751837482883,3.85148667,2596.4,2596.3,0.34153107]
[1751837483712,9.444,2596.7,2596.3,0.34153107]
[1751837484021,9.444,2596.7,2596.4,0.34153107]
[1751837484022,3.85127112,2596.6,2596.4,0.34153107]
[1751837484180,13.1030417,2596.7,2596.6,0.192]
[1751837484379,0.192,2596.4,2595.9,0.192]
[1751837484697,0.192,2596.5,2595.9,0.192]
[1751837484881,20.94739769,2596.7,2595.0,0.20555282]
[1751837484882,10.0,2596.3,2595.2,0.20555282]
[1751837485084,10.0,2596.3,2595.9,0.192]
[1751837485503,3.85208012,2596.0,2595.9,0.192]
[1751837485709,9.252,2596.4,2595.9,0.192]
[1751837485887,13.10359553,2596.4,2596.3,0.192]
[1751837486086,9.252,2596.4,2596.3,0.192]
[1751837486311,9.1511,2596.4,2596.3,0.192]
[1751837486521,8.22558433,2596.4,2596.3,0.192]
[1751837486733,7.59892268,2596.4,2596.3,0.192]
[1751837487040,17.94314584,2596.4,2596.3,0.192]
[1751837487578,6.63483741,2596.4,2596.3,0.192]
[1751837487803,3.8521723,2596.0,2595.2,3.85313508]
[1751837488003,18.09885672,2595.6,2595.3,0.03853119]
[1751837488425,18.09885672,2595.6,2595.5,0.192]
[1751837488599,18.09885672,2595.6,2595.5,0.53656188]
[1751837488776,28.17379666,2595.6,2595.5,0.5750901]
[1751837488977,25.80763794,2595.6,2595.5,4.19738407]
[1751837489397,17.59208915,2595.6,2595.5,4.23591229]
[1751837489613,11.32844686,2596.0,2595.9,3.85222851]
[1751837489819,1.31001865,2598.6,2596.1,3.85193174]
[1751837489986,0.26697564,2598.7,2598.0,3.8491147]
[1751837490179,9.254,2599.3,2597.6,1.5071]
[1751837490416,9.254,2599.3,2597.7,3.8880247]
[1751837490618,10.1794,2599.3,2597.7,0.03849559]
[1751837490834,3.84760879,2599.1,2598.7,1.64511061]
[1751837491039,3.84778175,2598.9,2598.8,1.31135222]
[1751837491337,9.254,2599.3,2598.4,1.68359583]
[1751837491338,3.84763876,2599.0,2598.4,1.68359583]
[1751837491527,3.84837406,2598.5,2598.4,1.64511061]
[1751837491835,10.0,2598.3,2597.7,1.64511061]
[1751837492047,10.0,2597.8,2597.2,2.19348082]
[1751837492240,3.85030032,2597.2,2597.1,0.69027824]
[1751837492403,3.85148667,2596.4,2596.3,3.29022123]
[1751837492604,3.85148667,2596.4,2596.2,3.29022123]
[1751837492605,3.85163501,2596.3,2596.2,3.29022123]
[1751837492806,0.71145745,2596.3,2596.0,3.29022123]
[1751837493000,3.85154461,2596.4,2595.6,3.70896799]
[1751837493001,0.7115924,2596.2,2595.6,3.70896799]
[1751837493206,0.7115924,2596.1,2596.0,3.85208012]
[1751837493427,9.254,2597.7,2596.0,3.85208012]
[1751837493428,3.85027039,2597.3,2596.0,3.85208012]
[1751837493635,3.84867028,2598.3,2596.7,3.85093025]
[1751837493841,3.84985474,2597.6,2596.8,3.88935189]
[1751837494004,3.84985474,2597.6,2596.9,3.85074506]
[1751837494208,3.84985474,2597.6,2597.0,0.03850596]
[1751837494633,3.84975006,2597.6,2597.0,0.03850596]
[1751837494940,3.85028671,2597.3,2596.8,5.48370205]
[1751837495147,0.03851948,2597.9,2596.4,7.67718287]
[1751837495148,3.85044857,2597.1,2596.4,7.67718287]
[1751837495438,0.04812875,2597.2,2596.5,0.34509702]
[1751837495439,0.04813246,2597.0,2596.5,0.34509702]
[1751837495640,3.85100355,2596.8,2596.6,0.36434538]
[1751837495845,3.85079565,2596.9,2596.7,0.34509702]
[1751837496014,3.85079565,2596.9,2596.8,0.34509702]
[1751837496209,3.85112747,2596.7,2596.3,0.01924836]
[1751837496432,9.251,2598.3,2596.9,3.85067604]
[1751837496621,0.04811023,2598.2,2597.0,3.86978903]
[1751837496836,3.85019145,2597.3,2597.1,0.01921944]
[1751837497068,3.84950858,2597.8,2597.0,3.85054442]
[1751837497341,3.85001466,2597.4,2597.1,0.01922538]
[1751837497517,0.04811578,2597.9,2597.2,0.36490524]
[1751837497723,3.84972696,2597.6,2597.3,0.34567615]
[1751837497926,3.8971105,2598.1,2597.4,0.34567615]
[1751837498113,3.84970742,2597.6,2597.5,0.34567615]
[1751837498334,3.84881841,2598.2,2597.5,0.34567615]
[1751837498641,0.20133101,2601.6,2596.7,15.419]
[1751837498642,9.27911485,2598.1,2597.1,30.60194211]
[1751837498845,9.2502,2598.1,2597.8,21.93480821]
[1751837499048,9.2502,2598.1,2598.0,0.192]
[1751837499425,0.57969397,2598.1,2598.0,0.192]
[1751837499620,0.57969397,2598.1,2598.0,0.53706988]
[1751837499852,0.57969397,2598.1,2598.0,0.74410874]
[1751837500558,0.57969397,2598.1,2598.0,0.39903886]
[1751837501179,0.57969397,2598.1,2598.0,0.43753]
[1751837501338,0.57969397,2598.1,2598.0,0.39903886]
[1751837502426,4.42866052,2598.1,2598.0,0.39903886]
[1751837502631,3.84896655,2598.1,2598.0,0.74364084]
[1751837503029,3.84896655,2598.1,2598.0,0.55164084]
[1751837503030,3.8778814,2598.1,2598.0,0.55164084]
[1751837503354,3.8778814,2598.1,2598.0,0.20703886]
[1751837503657,3.84858894,2598.4,2598.0,1.52663858]
[1751837503846,4.61827323,2598.4,2598.3,14.29818227]
[1751837504050,3.84896655,2598.1,2598.0,17.59536053]
[1751837504368,3.84970742,2597.6,2597.5,21.93480821]
[1751837504660,3.84957488,2597.7,2597.5,21.93480821]
[1751837504661,9.25,2597.7,2597.5,21.93480821]
[1751837504856,3.84970742,2597.6,2597.5,21.93480821]
[1751837505062,3.85030032,2597.2,2597.1,11.00404219]
[1751837505580,4.20819478,2597.2,2597.1,11.00404219]
[1751837505860,4.20819478,2597.2,2597.1,13.21350932]
[1751837506264,0.35789446,2597.2,2596.8,18.71178775]
[1751837506565,0.35789446,2597.1,2596.9,7.74625301]
[1751837506766,0.35789446,2597.0,2596.9,7.74625301]
[1751837506931,9.25,2597.7,2596.9,0.34519189]
[1751837507131,3.84995528,2597.5,2597.4,5.50419358]
[1751837507360,3.8497776,2597.6,2597.4,5.50419358]
[1751837507560,3.84985563,2597.5,2597.4,5.50419358]
[1751837507865,9.25,2597.7,2597.4,5.50515865]
[1751837508179,9.25,2597.7,2597.5,5.50515865]
[1751837508362,5.78076442,2597.7,2597.5,5.50515865]
[1751837508668,10.76968429,2598.4,2597.4,0.03850003]
[1751837508872,0.35794911,2598.3,2598.1,4.40340778]
[1751837509171,4.20675965,2598.2,2598.1,4.40340778]
[1751837509366,3.84883529,2598.2,2598.1,4.40340778]
[1751837509778,9.25,2598.5,2597.8,5.50425973]
[1751837510070,0.35788616,2598.4,2598.2,4.40083622]
[1751837511068,9.25,2598.5,2598.3,4.43932292]
[1751837511376,5.19564497,2599.8,2598.3,0.0384867]
[1751837511377,9.25,2599.5,2598.3,0.0384867]
[1751837511594,0.26697564,2599.7,2599.0,1.504]
[1751837511880,0.005,2601.3,2600.0,3.84608247]
[1751837512040,0.005,2601.3,2600.4,4.39744582]
[1751837512239,0.005,2601.3,2600.5,4.43589996]
[1751837512436,0.005,2601.3,2600.8,4.39744582]
[1751837512778,3.84497805,2600.8,2600.7,5.49680728]
[1751837512938,3.84497805,2600.8,2600.6,4.39215519]
[1751837513139,3.84930087,2601.3,2600.6,4.39215519]
[1751837513140,0.005,2601.3,2600.6,4.39215519]
[1751837513343,0.005,2601.3,2601.0,3.29362646]